bitfinex/quotes_SOLUSD_20251218
["timestamp","ask_amount","ask_price","bid_price","bid_amount"]
[1766024144061,19.27767296,124.04,123.96,0.66]
[1766024144062,10.56737091,124.0,123.96,0.66]
[1766024144263,10.56737091,124.0,123.97,0.66]
[1766024144560,10.56737091,124.01,123.97,0.66]
[1766024144962,10.56737091,124.01,123.96,8.80994492]
[1766024145161,10.56737091,124.02,123.97,0.66]
[1766024145374,27.33979157,124.04,123.97,0.66]
[1766024145566,10.56737091,124.02,123.97,0.66]
[1766024145768,10.56737091,124.02,123.98,0.66]
[1766024147090,10.56737091,124.01,123.98,0.66]
[1766024147563,10.56737091,124.0,123.97,0.66]
[1766024148680,19.40737091,124.01,123.97,0.66]
[1766024149965,10.56737091,124.0,123.97,0.66]
[1766024150482,10.56737091,123.98,123.95,9.52994492]
[1766024150668,10.56737091,123.98,123.96,0.72]
[1766024151172,10.56737091,123.99,123.96,0.72]
[1766024151377,3.98416895,123.99,123.96,0.72]
[1766024152186,27.34165708,124.01,123.96,0.72]
[1766024152365,3.98416895,123.99,123.96,0.72]
[1766024153782,19.27767296,124.01,123.96,0.72]
[1766024153983,3.98416895,124.0,123.96,0.72]
[1766024154890,3.98416895,123.99,123.96,0.72]
[1766024155066,3.98416895,123.98,123.96,0.72]
[1766024156691,8.06503198,124.0,123.94,0.67]
[1766024156864,3.98416895,123.96,123.94,0.67]
[1766024157472,3.98416895,123.96,123.93,0.67]
[1766024157867,3.98416895,123.97,123.93,0.67]
[1766024158788,16.90617306,123.98,123.93,0.67]
[1766024158992,3.98416895,123.97,123.93,0.67]
[1766024160501,16.90617306,123.98,123.93,0.67]
[1766024160683,3.98416895,123.97,123.93,0.67]
[1766024162096,3.98416895,123.96,123.93,0.67]
[1766024162595,8.84,123.98,123.93,4.65416895]
[1766024162792,3.98416895,123.99,123.95,0.67]
[1766024163187,3.98416895,123.98,123.95,0.67]
[1766024163484,3.98416895,123.97,123.95,0.67]
[1766024163674,3.98416895,123.96,123.93,0.67]
[1766024163877,3.98416895,123.95,123.91,0.67]
[1766024165175,8.06788962,123.95,123.88,12.99411387]
[1766024165376,3.98416895,123.93,123.89,0.67]
[1766024166111,10.43767296,123.96,123.91,0.67]
[1766024166288,14.42184191,123.96,123.92,0.67]
[1766024168399,3.98416895,123.95,123.92,0.67]
[1766024169311,3.98416895,123.95,123.89,8.80994492]
[1766024169494,3.98416895,123.95,123.9,0.68]
[1766024169811,3.98691394,123.94,123.9,0.68]
[1766024170175,3.98691394,123.95,123.9,0.68]
[1766024170495,3.98691394,123.97,123.92,3.98691394]
[1766024170699,3.98691394,123.97,123.93,0.68]
[1766024171707,14.4245869,123.98,123.93,0.68]
[1766024171890,14.4245869,123.98,123.94,0.68]
[1766024173623,21.00896705,123.98,123.94,0.68]
[1766024174730,10.43767296,123.98,123.94,0.68]
[1766024174884,10.43767296,123.98,123.94,10.57129409]
[1766024175091,29.84896705,123.99,123.95,0.69]
[1766024175825,10.57129409,123.98,123.95,0.69]
[1766024176204,10.57129409,123.98,123.94,0.69]
[1766024177120,29.84896705,123.99,123.94,0.69]
[1766024178195,37.91426006,123.99,123.94,0.69]
[1766024178520,10.57129409,123.98,123.94,0.69]
[1766024179708,19.27767296,123.99,123.94,0.69]
[1766024179709,29.84896705,123.99,123.94,0.69]
[1766024180018,10.43767296,123.99,123.95,0.69]
[1766024180196,21.00896705,123.99,123.95,0.69]
[1766024180398,21.00896705,123.99,123.91,8.07024081]
[1766024180622,10.57129409,123.98,123.94,0.69]
[1766024180796,29.07416086,123.99,123.94,0.69]
[1766024181599,21.00896705,123.99,123.94,0.69]
[1766024181913,10.43767296,123.99,123.94,0.69]
[1766024182099,21.00896705,123.99,123.94,0.69]
[1766024183521,18.50301439,123.99,123.94,0.69]
[1766024183735,29.07430848,123.99,123.94,0.69]
[1766024183943,10.43767296,123.99,123.94,10.57129409]
[1766024184111,29.86896705,124.01,123.96,0.7]
[1766024184298,10.57129409,124.0,123.96,0.7]
[1766024185029,10.57129409,123.99,123.96,0.7]
[1766024185400,6.50386732,124.0,123.96,0.7]
[1766024186216,8.06469661,124.0,123.94,0.7]
[1766024186404,19.29767296,124.01,123.97,0.7]
[1766024186405,25.80154028,124.01,123.97,0.7]
[1766024186728,6.50386732,123.99,123.94,0.7]
[1766024187027,27.36162075,124.01,123.94,0.7]
[1766024187028,6.50386732,124.0,123.95,0.7]
[1766024188027,8.06498344,124.0,123.95,0.7]
[1766024188208,6.50386732,123.99,123.95,0.7]
[1766024189046,27.36173152,124.01,123.95,0.7]
[1766024189330,6.50386732,124.0,123.95,0.7]
[1766024190031,6.50386732,123.99,123.95,0.7]
[1766024191112,27.36173152,124.01,123.95,0.7]
[1766024191319,6.50386732,123.99,123.95,0.7]
[1766024193912,8.06451976,124.0,123.95,0.7]
[1766024194213,6.50386732,123.99,123.95,0.7]
[1766024195325,8.06451976,124.0,123.95,0.7]
[1766024195520,2.5498276,123.99,123.95,0.7]
[1766024196727,21.84750056,124.01,123.95,3.2498276]
[1766024197037,12.98750056,124.01,123.96,0.7]
[1766024197332,19.45229127,124.04,123.98,0.7]
[1766024197639,10.43767296,124.03,123.99,0.7]
[1766024198132,12.98750056,124.03,123.99,0.7]
[1766024199926,4.21769249,124.04,124.0,3.2498276]
[1766024200132,2.5498276,124.05,124.01,0.7]
[1766024201517,21.04829415,124.06,124.01,0.7]
[1766024201720,12.98750056,124.06,124.01,0.7]
[1766024202339,10.43767296,124.06,124.02,0.72]
[1766024202531,10.43767296,124.06,124.03,0.72]
[1766024202711,8.84,124.07,124.03,0.72]
[1766024203321,10.43767296,124.09,124.05,0.72]
[1766024203529,4.21577524,124.1,124.05,0.72]
[1766024203727,11.3898276,124.11,124.06,0.72]
[1766024203936,19.27767296,124.11,124.06,0.72]
[1766024204145,18.55767296,124.11,124.05,0.72]
[1766024204338,18.55767296,124.11,124.04,8.80994492]
[1766024204339,0.1,124.12,124.09,0.72]
[1766024204523,0.1,124.13,124.1,0.72]
[1766024205254,0.1,124.15,124.12,0.72]
[1766024205455,0.78,124.15,124.11,0.72]
[1766024205629,3.3298276,124.15,124.11,0.72]
[1766024205954,0.68,124.13,124.09,0.72]
[1766024206132,3.2298276,124.13,124.09,0.72]
[1766024206334,27.43249105,124.15,124.05,19.24761788]
[1766024206335,3.2298276,124.1,124.05,19.24761788]
[1766024206645,0.68,124.08,124.05,0.72]
[1766024206848,3.2298276,124.08,124.05,0.72]
[1766024207162,0.68,124.06,124.02,0.72]
[1766024207622,3.2298276,124.05,124.0,10.43767296]
[1766024207822,0.68,124.05,124.01,0.72]
[1766024208149,2.5498276,124.05,124.01,0.72]
[1766024208455,3.2298276,124.05,124.01,0.72]
[1766024209155,0.68,124.05,124.01,0.72]
[1766024209354,10.43767296,124.07,124.02,15.30485168]
[1766024209659,10.43767296,124.07,124.03,0.72]
[1766024210333,10.43767296,124.07,124.01,28.22350665]
[1766024210334,0.68,124.07,124.01,0.72]
[1766024210542,7.17490676,124.06,124.01,0.72]
[1766024210746,27.33745047,124.08,124.01,0.72]
[1766024210747,15.33490676,124.07,124.03,0.72]
[1766024211254,9.52,124.07,124.03,0.72]
[1766024211855,6.49490676,124.08,124.03,0.72]
[1766024212231,6.49490676,124.07,124.03,0.72]
[1766024212431,7.17490676,124.07,124.03,0.72]
[1766024212848,16.01490676,124.08,124.03,0.72]
[1766024213049,6.49490676,124.07,124.03,0.72]
[1766024213233,7.17490676,124.07,124.03,0.72]
[1766024213439,7.17490676,124.06,124.01,0.72]
[1766024213846,7.17490676,124.04,124.01,0.72]
[1766024214050,7.17490676,124.04,124.0,8.80994492]
[1766024214259,0.68,124.06,124.01,0.72]
[1766024214555,7.17490676,124.05,124.01,0.72]
[1766024214932,6.49490676,124.04,123.97,23.40096553]
[1766024215132,7.17490676,124.03,123.99,9.52994492]
[1766024215528,0.68,124.04,124.0,0.72]
[1766024215734,10.43767296,124.07,124.0,0.72]
[1766024215735,7.17490676,124.05,124.0,0.72]
[1766024216028,6.49490676,124.06,124.02,8.80994492]
[1766024216235,16.01490676,124.07,124.03,0.72]
[1766024216471,15.33490676,124.07,124.03,0.72]
[1766024216658,0.68,124.09,124.03,0.72]
[1766024216659,6.49490676,124.08,124.03,0.72]
[1766024216846,10.43767296,124.08,124.03,0.72]
[1766024217052,6.49490676,124.08,124.03,0.72]
[1766024217250,0.68,124.1,124.04,9.52994492]
[1766024217558,16.93257972,124.08,124.04,0.72]
[1766024217936,10.43767296,124.08,124.04,0.72]
[1766024218655,0.68,124.09,124.04,0.72]
[1766024218856,6.49490676,124.1,124.04,0.72]
[1766024219049,8.84,124.11,124.04,0.72]
[1766024219358,7.17490676,124.09,124.04,0.72]
[1766024219744,0.68,124.09,124.04,0.72]
[1766024219945,6.49490676,124.1,124.05,0.72]
[1766024220152,7.17490676,124.1,124.05,0.72]
[1766024220356,9.52,124.11,124.05,0.72]
[1766024220541,6.49490676,124.09,124.05,0.72]
[1766024220862,7.17490676,124.1,124.05,0.72]
[1766024221166,6.49490676,124.08,124.03,8.80994492]
[1766024221353,7.17490676,124.08,124.04,0.72]
[1766024221742,7.17490676,124.09,124.04,0.72]
[1766024222146,0.68,124.08,124.04,0.72]
[1766024222352,8.0575294,124.11,124.06,8.80994492]
[1766024222353,6.49490676,124.11,124.06,8.80994492]
[1766024222566,24.57079562,124.16,124.09,0.72]
[1766024222567,0.68,124.16,124.09,0.72]
[1766024222742,0.78,124.15,124.11,0.72]
[1766024222943,7.27490676,124.15,124.11,0.72]
[1766024223245,7.27490676,124.15,124.13,0.72]
[1766024223246,0.1,124.15,124.13,0.72]
[1766024224269,0.1,124.15,124.12,9.52994492]
[1766024224776,7.27490676,124.15,124.11,9.52994492]
[1766024225068,7.17490676,124.14,124.1,9.52994492]
[1766024225369,0.68,124.12,124.09,0.72]
[1766024225567,6.49490676,124.13,124.09,0.72]
[1766024225568,7.17490676,124.13,124.09,0.72]
[1766024225747,7.17490676,124.12,124.08,0.72]
[1766024226359,8.84,124.14,124.07,8.80994492]
[1766024226360,0.68,124.1,124.07,8.80994492]
[1766024226768,7.17490676,124.11,124.07,9.52994492]
[1766024226956,0.68,124.11,124.07,9.52994492]
[1766024227576,7.17490676,124.11,124.07,9.52994492]
[1766024227950,0.68,124.11,124.07,9.52994492]
[1766024228565,7.17490676,124.12,124.08,0.72]
[1766024228743,6.49490676,124.12,124.08,0.72]
[1766024228946,7.17490676,124.12,124.08,0.72]
[1766024229170,11.11767296,124.13,124.09,9.52994492]
[1766024229372,0.68,124.12,124.09,9.52994492]
[1766024229674,0.68,124.11,124.08,0.72]
[1766024229855,7.17490676,124.12,124.08,0.72]
[1766024230573,6.49490676,124.11,124.08,0.72]
[1766024230789,16.93257972,124.13,124.09,8.80994492]
[1766024231076,0.1,124.15,124.12,0.71]
[1766024232457,16.08490676,124.18,124.13,8.80994492]
[1766024232767,0.65,124.17,124.13,9.51994492]
[1766024232953,7.14490676,124.17,124.13,9.51994492]
[1766024233152,3.10874552,124.17,124.14,6.64562676]
[1766024233377,3.10874552,124.17,124.15,5.93562676]
[1766024233378,6.49490676,124.17,124.15,5.93562676]
[1766024233678,6.49490676,124.16,124.1,0.71]
[1766024233896,6.49490676,124.13,124.1,0.71]
[1766024234052,6.49490676,124.14,124.1,0.71]
[1766024234577,10.43767296,124.14,124.1,0.71]
[1766024234784,6.49490676,124.13,124.1,0.71]
[1766024235154,10.43767296,124.14,124.1,0.71]
[1766024235354,6.49490676,124.13,124.1,0.71]
[1766024235782,10.43767296,124.14,124.1,0.71]
[1766024235985,6.49490676,124.13,124.1,0.71]
[1766024236160,16.93257972,124.14,124.1,0.71]
[1766024236361,6.49490676,124.13,124.1,0.71]
[1766024236980,6.48976208,124.13,124.1,0.71]
[1766024237290,6.85976208,124.13,124.09,0.71]
[1766024237459,6.48976208,124.13,124.09,0.71]
[1766024238082,6.48976208,124.13,124.08,8.84]
[1766024238083,6.48976208,124.12,124.08,8.84]
[1766024238274,6.48976208,124.11,124.08,0.71]
[1766024238459,6.48976208,124.11,124.07,9.51994492]
[1766024238776,6.48976208,124.1,124.07,9.51994492]
[1766024239161,6.48976208,124.1,124.07,0.71]
[1766024239587,6.48976208,124.08,124.05,0.71]
[1766024239962,0.37,124.09,124.05,0.71]
[1766024239963,6.48976208,124.09,124.05,0.71]
[1766024240660,16.92743504,124.1,124.05,0.71]
[1766024241058,6.85976208,124.11,124.05,0.71]
[1766024241272,10.80767296,124.12,124.05,0.71]
[1766024241470,6.48976208,124.11,124.05,0.71]
[1766024241859,6.48976208,124.1,124.05,0.71]
[1766024242461,10.43767296,124.11,124.05,0.71]
[1766024242770,6.48976208,124.1,124.05,0.71]
[1766024243566,0.43276049,124.1,124.05,0.71]
[1766024244165,6.48976208,124.11,124.06,0.71]
[1766024244684,6.48976208,124.11,124.07,9.51994492]
[1766024245577,10.54911637,124.11,124.08,5.9681937]
[1766024245773,0.37,124.11,124.09,5.9681937]
[1766024246079,0.37,124.12,124.1,5.9681937]
[1766024246280,19.27767296,124.13,124.11,5.9681937]
[1766024246583,10.43767296,124.13,124.12,5.96972991]
[1766024246959,10.43767296,124.13,124.09,0.71]
[1766024247159,10.54911637,124.12,124.09,0.71]
[1766024247364,0.37,124.14,124.09,0.71]
[1766024247559,10.54911637,124.13,124.09,0.71]
[1766024248364,0.37,124.14,124.09,0.71]
[1766024248577,10.54911637,124.13,124.09,0.71]
[1766024248976,10.91911637,124.13,124.09,0.71]
[1766024249192,0.37,124.13,124.09,0.71]
[1766024249488,19.27767296,124.15,124.09,0.71]
[1766024249676,10.54911637,124.12,124.09,0.71]
[1766024250065,0.37,124.14,124.09,0.71]
[1766024250265,10.54911637,124.12,124.09,0.71]
[1766024250693,10.54911637,124.11,124.06,0.71]
[1766024250877,10.54911637,124.1,124.06,0.71]
[1766024251273,8.05613873,124.13,124.06,0.71]
[1766024251568,10.54911637,124.12,124.09,0.71]
[1766024253084,10.91911637,124.13,124.09,0.71]
[1766024253583,10.54911637,124.12,124.09,0.71]
[1766024256373,0.37,124.13,124.09,0.71]
[1766024256702,10.91911637,124.13,124.09,0.71]
[1766024256994,10.54911637,124.12,124.09,0.71]
[1766024257897,10.54911637,124.1,124.07,0.71]
[1766024258276,0.37,124.11,124.07,0.71]
[1766024258478,10.54911637,124.09,124.07,0.71]
[1766024258708,10.54911637,124.1,124.07,0.71]
[1766024259027,10.54911637,124.1,124.08,5.98172797]
[1766024259303,10.54911637,124.1,124.09,5.98338459]
[1766024259608,10.54911637,124.1,124.07,0.71]
[1766024259806,10.54911637,124.09,124.06,0.71]
[1766024260908,10.54911637,124.08,124.04,0.71]
[1766024261907,10.54911637,124.07,124.04,0.71]
[1766024262679,10.54911637,124.08,124.04,0.71]
[1766024262899,10.54911637,124.09,124.04,0.71]
[1766024263694,10.91911637,124.08,124.04,0.71]
[1766024263911,10.54911637,124.07,124.04,0.71]
[1766024265199,19.27767296,124.11,124.05,8.80994492]
[1766024265403,10.91911637,124.1,124.06,0.68]
[1766024265589,10.54911637,124.09,124.06,0.68]
[1766024265783,10.91911637,124.1,124.06,0.68]
[1766024266191,10.54911637,124.1,124.06,0.68]
[1766024267114,19.27767296,124.11,124.06,0.68]
[1766024267296,10.54911637,124.1,124.06,0.68]
[1766024268135,10.91911637,124.1,124.06,0.68]
[1766024268616,19.64767296,124.11,124.06,0.68]
[1766024268802,29.82678933,124.11,124.06,0.68]
[1766024269190,10.91911637,124.12,124.08,0.68]
[1766024269386,14.41304031,124.13,124.08,0.68]
[1766024269606,14.78304031,124.13,124.08,0.68]
[1766024270204,10.80767296,124.13,124.08,0.68]
[1766024270421,14.78304031,124.13,124.08,0.68]
[1766024270599,14.78304031,124.13,124.09,0.68]
[1766024271617,3.97536735,124.12,124.09,0.68]
[1766024273196,4.34536735,124.11,124.08,0.68]
[1766024273519,3.97536735,124.11,124.08,0.68]
[1766024274031,4.34536735,124.11,124.06,0.68]
[1766024274430,18.49389176,124.13,124.06,0.68]
[1766024274431,0.37,124.12,124.06,0.68]
[1766024274733,3.97536735,124.11,124.06,0.68]
[1766024275221,0.37,124.12,124.06,0.68]
[1766024275429,3.97536735,124.11,124.06,0.68]
[1766024277427,0.37,124.12,124.06,0.68]
[1766024277594,3.97536735,124.11,124.06,8.06049346]
[1766024277800,4.34536735,124.12,124.07,0.68]
[1766024278635,0.37,124.11,124.07,0.68]
[1766024279623,14.41304031,124.13,124.09,0.68]
[1766024279799,0.37,124.12,124.09,0.68]
[1766024280208,14.78304031,124.13,124.09,0.68]
[1766024281127,10.80767296,124.13,124.09,0.68]
[1766024281309,14.78304031,124.13,124.09,0.68]
[1766024281516,3.97536735,124.12,124.09,0.68]
[1766024281907,14.78304031,124.13,124.09,0.68]
[1766024282433,13.18536735,124.14,124.09,0.68]
[1766024282613,0.37,124.13,124.09,0.68]
[1766024283229,9.21,124.14,124.09,0.68]
[1766024283414,0.37,124.13,124.09,0.68]
[1766024283734,4.34536735,124.13,124.09,0.68]
[1766024285532,3.97536735,124.13,124.09,0.68]
[1766024285832,10.43767296,124.15,124.11,0.68]
[1766024285999,14.78304031,124.17,124.11,0.68]
[1766024286204,4.34536735,124.17,124.12,0.68]
[1766024286512,8.94,124.18,124.13,0.68]
[1766024286513,0.1,124.18,124.13,0.68]
[1766024286708,13.28536735,124.21,124.16,0.68]
[1766024287113,19.74767296,124.21,124.16,0.68]
[1766024287328,23.25304031,124.21,124.16,0.68]
[1766024287531,4.44536735,124.19,124.13,0.68]
[1766024287716,4.44536735,124.16,124.12,9.52]
[1766024287907,3.97536735,124.16,124.13,0.68]
[1766024288102,0.47,124.17,124.13,0.68]
[1766024288302,3.97536735,124.16,124.13,0.68]
[1766024288618,4.44536735,124.17,124.13,0.68]
[1766024289008,4.44536735,124.18,124.13,0.68]
[1766024289334,4.44536735,124.17,124.13,0.68]
[1766024289929,14.41304031,124.18,124.13,0.68]
[1766024290230,14.88304031,124.18,124.13,0.68]
[1766024290454,10.43767296,124.2,124.17,0.68]
[1766024290733,14.88304031,124.22,124.17,0.68]
[1766024290944,3.97536735,124.22,124.17,0.68]
[1766024291111,4.31134886,124.23,124.18,0.71]
[1766024291112,8.28671621,124.23,124.18,0.71]
[1766024291312,14.98304031,124.23,124.18,0.71]
[1766024292135,4.54536735,124.23,124.18,0.71]
[1766024292307,14.98304031,124.23,124.18,0.71]
[1766024292508,3.97536735,124.22,124.18,0.71]
[1766024292911,0.1,124.23,124.19,0.68]
[1766024294033,11.09708232,124.23,124.19,0.68]
[1766024294209,0.1,124.23,124.19,0.68]
[1766024295037,10.62708232,124.23,124.19,0.68]
[1766024295223,0.1,124.23,124.19,0.68]
[1766024295427,10.62708232,124.23,124.19,0.68]
[1766024296120,0.1,124.23,124.2,0.68]
[1766024296324,0.1,124.23,124.22,0.68]
[1766024296853,0.1,124.26,124.22,0.68]
[1766024297458,11.19708232,124.26,124.22,0.68]
[1766024297827,10.52708232,124.25,124.19,10.52708232]
[1766024298027,0.57,124.23,124.2,0.7]
[1766024298264,0.57,124.25,124.2,0.7]
[1766024298450,11.19708232,124.26,124.22,0.7]
[1766024298829,0.1,124.26,124.23,0.7]
[1766024299162,11.09708232,124.24,124.2,9.54]
[1766024299362,10.53767296,124.26,124.2,0.7]
[1766024299534,0.1,124.26,124.23,8.80994492]
[1766024299740,0.1,124.26,124.24,0.7]
[1766024300537,0.1,124.27,124.24,0.7]
[1766024300737,4.20856467,124.31,124.27,0.7]
[1766024300959,0.72,124.33,124.28,0.72]
[1766024301159,11.15767296,124.33,124.28,0.72]
[1766024301459,11.15767296,124.33,124.25,8.80994492]
[1766024301460,0.72,124.29,124.25,0.72]
[1766024301639,0.72,124.31,124.27,0.72]
[1766024301964,0.72,124.32,124.28,0.72]
[1766024302256,0.72,124.31,124.25,10.43767296]
[1766024302456,20.96475528,124.32,124.22,28.9652379]
[1766024302457,0.72,124.28,124.24,0.72]
[1766024302660,11.24708232,124.29,124.24,0.72]
[1766024302958,0.72,124.29,124.25,0.72]
[1766024303156,10.52708232,124.3,124.23,9.48994492]
[1766024303157,0.68,124.3,124.23,9.48994492]
[1766024303359,11.18708232,124.28,124.24,0.66]
[1766024304053,11.09767296,124.28,124.24,0.66]
[1766024304252,21.61890679,124.28,124.24,0.66]
[1766024304463,10.43767296,124.28,124.24,0.66]
[1766024304758,0.66,124.3,124.26,0.66]
[1766024304962,20.02123383,124.32,124.27,0.69]
[1766024305164,11.18123383,124.34,124.29,0.69]
[1766024305464,10.43767296,124.32,124.29,0.69]
[1766024306375,11.18123383,124.34,124.29,0.69]
[1766024306532,13.04747189,124.35,124.29,0.69]
[1766024306738,0.66,124.35,124.31,0.69]
[1766024307070,0.1,124.36,124.33,0.69]
[1766024307236,0.1,124.36,124.31,0.69]
[1766024307237,0.76,124.36,124.31,0.69]
[1766024307438,17.66327447,124.36,124.31,0.69]
[1766024307742,0.76,124.36,124.32,0.69]
[1766024308064,0.1,124.36,124.32,0.69]
[1766024308463,7.22560151,124.36,124.32,0.69]
[1766024308966,6.56560151,124.36,124.32,0.69]
[1766024309168,0.66,124.35,124.29,9.49994492]
[1766024309345,0.66,124.33,124.29,9.49994492]
[1766024309859,0.66,124.33,124.25,28.9399807]
[1766024309860,6.46560151,124.31,124.26,8.80994492]
[1766024310044,7.12560151,124.31,124.27,0.69]
[1766024310664,7.12560151,124.31,124.24,27.30653488]
[1766024310665,6.46560151,124.29,124.24,9.51]
[1766024310849,6.46560151,124.29,124.24,0.69]
[1766024311052,10.43767296,124.31,124.26,15.27554643]
[1766024311248,7.12560151,124.3,124.25,0.69]
[1766024311664,10.43767296,124.31,124.27,0.69]
[1766024311848,10.43767296,124.31,124.28,0.69]
[1766024312258,7.12560151,124.33,124.28,0.69]
[1766024312575,11.09767296,124.33,124.29,9.49994492]
[1766024312753,17.56327447,124.33,124.29,9.49994492]
[1766024312950,10.43767296,124.33,124.3,0.69]
[1766024313149,17.56327447,124.33,124.26,0.69]
[1766024313471,7.12560151,124.3,124.25,10.43767296]
[1766024313649,7.12560151,124.28,124.24,8.80994492]
[1766024313852,7.12560151,124.28,124.24,9.49994492]
[1766024314271,0.66,124.32,124.27,0.69]
[1766024314662,7.12560151,124.32,124.27,0.69]
[1766024315175,0.66,124.3,124.25,0.69]
[1766024315477,6.46560151,124.3,124.25,0.69]
[1766024315975,27.30096299,124.33,124.24,6.46560151]
[1766024315976,0.66,124.32,124.24,6.46560151]
[1766024316173,6.46560151,124.31,124.27,0.69]
[1766024316378,7.12560151,124.31,124.27,0.69]
[1766024317168,7.12560151,124.3,124.26,0.69]
[1766024317572,8.04440658,124.31,124.26,0.69]
[1766024317573,6.46560151,124.31,124.26,0.69]
[1766024317763,6.46560151,124.3,124.24,8.80994492]
[1766024317971,7.12560151,124.3,124.25,0.69]
[1766024318280,0.66,124.3,124.25,6.46560151]
[1766024318488,6.46560151,124.3,124.26,0.69]
[1766024318861,7.12560151,124.3,124.26,0.69]
[1766024319058,8.04450784,124.31,124.24,8.80994492]
[1766024319277,7.12560151,124.29,124.25,0.69]
[1766024319666,0.66,124.29,124.25,0.69]
[1766024319865,7.15560151,124.28,124.25,0.69]
[1766024320180,0.69,124.29,124.23,6.46560151]
[1766024320389,7.15560151,124.29,124.25,0.7]
[1766024321384,6.46560151,124.26,124.22,8.80994492]
[1766024321553,7.18560151,124.26,124.22,0.7]
[1766024321757,7.18560151,124.23,124.19,0.7]
[1766024321954,6.46560151,124.21,124.16,0.7]
[1766024322180,6.46560151,124.21,124.17,8.80994492]
[1766024322385,7.18560151,124.22,124.18,0.7]
[1766024322558,7.18560151,124.19,124.13,6.46560151]
[1766024322756,0.72,124.19,124.15,0.7]
[1766024323068,10.43767296,124.21,124.16,0.7]
[1766024323264,10.43767296,124.21,124.15,6.46560151]
[1766024323265,17.62327447,124.21,124.17,0.7]
[1766024323667,0.72,124.25,124.19,8.80994492]
[1766024323962,7.18560151,124.24,124.2,6.59872501]
[1766024324176,7.18560151,124.24,124.2,0.7]
[1766024324364,6.46560151,124.23,124.2,0.7]
[1766024324684,7.18560151,124.24,124.2,0.7]
[1766024325382,7.18560151,124.24,124.18,6.46560151]
[1766024325383,7.18560151,124.22,124.18,0.7]
[1766024326387,17.62327447,124.23,124.19,0.7]
[1766024326586,6.46560151,124.21,124.16,19.24761788]
[1766024326806,18.48726491,124.23,124.16,19.24761788]
[1766024326807,6.46560151,124.2,124.17,5.9106709]
[1766024326984,7.18560151,124.22,124.17,0.7]
[1766024327505,6.46560151,124.21,124.17,0.7]
[1766024329003,10.43767296,124.22,124.19,0.7]
[1766024329212,6.46560151,124.24,124.2,0.7]
[1766024329705,17.62327447,124.23,124.19,0.7]
[1766024331807,6.46560151,124.22,124.17,8.80994492]
[1766024331985,6.46560151,124.19,124.18,5.06133364]
[1766024332184,6.46560151,124.19,124.16,0.7]
[1766024332595,6.46560151,124.17,124.11,8.25710999]
[1766024332792,6.46560151,124.17,124.14,0.7]
[1766024334105,6.46560151,124.16,124.12,0.7]
[1766024334700,6.46560151,124.14,124.12,0.7]
[1766024334896,6.46560151,124.15,124.12,0.7]
[1766024335808,6.46560151,124.16,124.12,0.7]
[1766024335989,16.90327447,124.17,124.12,0.7]
[1766024336309,16.90327447,124.17,124.14,0.7]
[1766024336506,6.46560151,124.17,124.14,0.7]
[1766024337307,19.27767296,124.2,124.14,0.7]
[1766024337518,6.46560151,124.18,124.14,0.7]
[1766024338796,6.46560151,124.17,124.14,0.7]
[1766024339792,6.46560151,124.19,124.15,8.80994492]
[1766024340098,6.46560151,124.2,124.16,0.7]
[1766024340308,16.89061149,124.22,124.16,0.7]
[1766024340517,6.46560151,124.2,124.16,0.7]
[1766024340694,6.46560151,124.21,124.16,0.7]
[1766024341095,6.46560151,124.17,124.13,8.80994492]
[1766024341299,6.46560151,124.15,124.13,0.7]